{"text_format":"3","workbook":"xlsx","n_sheets":4,"sheets":["ฟอร์มการประมูล","ข้อมูลแผนภูมิ","การแบ่งต้นทุน","สรุปต้นทุนการประมูล"],"not_rendered":{"charts":1,"images":2,"defined_names":11},"read":"whole","date_system":"1900"}

{"sheet":"ฟอร์มการประมูล","index":0,"n_rows":21,"n_cols":6,"rows_kept":21,"merged":[[0,1,0,4],[1,1,1,2],[7,1,8,1],[7,2,8,2],[10,1,10,5],[12,1,12,5],[14,1,14,5],[15,1,15,2],[15,4,15,5],[16,1,16,2],[16,4,16,5],[18,1,18,5],[19,1,19,2],[19,4,19,5],[20,1,20,2],[20,4,20,5]]}
[null,"ฟอร์มการเสนอราคาก่อสร้าง"]
[null,"ข้อมูลเจ้าของ",null,null,"ข้อมูลผู้รับเหมา"]
[null,"ชื่อ","ใส่ชื่อเจ้าของในเซลล์นี้",null,"บริษัท","ใส่ชื่อบริษัทผู้รับเหมาในเซลล์นี้"]
[null,"ที่อยู่","ใส่ที่อยู่เจ้าของในเซลล์นี้",null,"ชื่อ","ใส่ชื่อผู้รับเหมาในเซลล์นี้"]
[null,"เมือง รัฐ รหัสไปรษณีย์","ใส่อำเภอ จังหวัด และรหัสไปรษณีย์ของเจ้าของในเซลล์นี้",null,"ที่อยู่","ใส่ที่อยู่ผู้รับเหมาในเซลล์นี้"]
[null,"โทรศัพท์","ใส่หมายเลขโทรศัพท์เจ้าของในเซลล์นี้",null,"เมือง รัฐ รหัสไปรษณีย์","ใส่อำเภอ จังหวัด และรหัสไปรษณีย์ของผู้รับเหมาในเซลล์นี้"]
[null,"อีเมล","ใส่ที่อยู่อีเมลของเจ้าของในเซลล์นี้",null,"โทรศัพท์","ใส่หมายเลขโทรศัพท์ผู้รับเหมาในเซลล์นี้"]
[null,"ชื่อโครงการ","ใส่ชื่อโครงการในเซลล์นี้",null,"อีเมล","ใส่ที่อยู่อีเมลผู้รับเหมาในเซลล์นี้ "]
[{"$nulls":4},"วันที่สำเร็จการศึกษา","ใส่วันที่เสร็จสมบูรณ์ในเซลล์นี้"]
[null,"ขอบเขตของงาน"]
[null,"ขอบเขตโครงการของงานอยู่ที่นี่ พิมพ์ข้อมูลจําเพาะทั้งหมดที่คุณต้องการ \n\nข้อความตัวอย่าง: นี่จะเป็นโครงการจําลองของการสร้างบันไดขนาดใหญ่ เราจะใช้ไม้แปรรูปขนาด 2x4 และ 2x8 เท่านั้น รวมถึงขายึดตงเพื่อสร้างกรอบ บันไดจะตัดจากวัสดุ 2x4 ใช้สกรูไม่น้อยกว่า 2 นิ้ว  ตะปูใดก็ได้จะมีขนาดไม่น้อยกว่า 10 เพนนี น้ำหนักการออกแบบจะต้องมีอย่างน้อย 500 ปอนด์ต่อขั้น ขั้นบันไดก็จะได้ระดับเดียวกับตัวบ้าน บันไดที่จะก้าวขึ้นจะถูกยึดติดกับบ้าน ผู้รับเหมาจะดูแลทำความสะอาด"]
[null,"ไม่รวม"]
[null,"รายละเอียดโครงการที่ไม่ได้รวมไว้ที่นี่ พิมพ์ทุกอย่างที่ไม่ได้รวมอยู่ในการประมูลนี้ \n\nข้อความตัวอย่าง: จะไม่มีการติดตั้งราง เจ้าของเตรียมดินให้พร้อม บันไดที่เจ้าของทาสีเอง"]
[null,"ข้อเสนอของบริษัท"]
[null,"มีข้อเสนอของบริษัทที่นี่ พิมพ์ภาพรวมของข้อเสนอ รวมถึงผู้ที่จะเสนองาน วันที่คาดว่าจะแล้วเสร็จ และจำนวนข้อเสนอ\n\nข้อความตัวอย่าง: เรา ชื่อบริษัท เสนอขอบเขตของงานข้างต้น ซึ่งจะแล้วเสร็จภายในวันที่เสร็จสิ้นสำหรับจำนวนเงินรวม"]
[]
[null,"ส่งโดย (ตัวแทนบริษัท)",null,null,"วันที่"]
[null,"การยอมรับของเจ้าของ"]
[null,"การยอมรับของเจ้าของอยู่ที่นี่ พิมพ์ชื่อเจ้าของในคำยืนยันที่มีวันที่เสร็จสมบูรณ์และจำนวนเงินทั้งหมดที่ระบุไว้ในข้อเสนอของบริษัท \n\nข้อความตัวอย่าง: ฉัน ชื่อเจ้าของ ยอมรับขอบเขตงานข้างต้น ซึ่งเสนอให้เสร็จสมบูรณ์ภายในวันที่เสร็จสมบูรณ์สําหรับจํานวนรวม"]
[]
[null,"ส่งโดย (เจ้าของบ้านหรือตัวแทนที่ได้รับอนุญาต)",null,null,"วันที่"]

{"sheet":"ข้อมูลแผนภูมิ","index":1,"n_rows":7,"n_cols":3,"rows_kept":7,"hidden":true}
[]
[null,null,"รวม"]
[null,{"$f":"INDEX(BidItems[#Data],MATCH(1,BidItems[ค่าใช้จ่ายจัดอันดับ],0),2)","v":"ค่าแรง"},{"$f":"INDEX(BidItems[#Data],MATCH(1,BidItems[ค่าใช้จ่ายจัดอันดับ],0),4)","v":200}]
[null,{"$f":"INDEX(BidItems[#Data],MATCH(2,BidItems[ค่าใช้จ่ายจัดอันดับ],0),2)","v":"ไม้แปรรูป 2x4x10"},{"$f":"INDEX(BidItems[#Data],MATCH(2,BidItems[ค่าใช้จ่ายจัดอันดับ],0),4)","v":99.39999999999999}]
[null,{"$f":"INDEX(BidItems[#Data],MATCH(3,BidItems[ค่าใช้จ่ายจัดอันดับ],0),2)","v":"ขายึดตง"},{"$f":"INDEX(BidItems[#Data],MATCH(3,BidItems[ค่าใช้จ่ายจัดอันดับ],0),4)","v":74.7}]
[null,{"$f":"INDEX(BidItems[#Data],MATCH(4,BidItems[ค่าใช้จ่ายจัดอันดับ],0),2)","v":"ไม้แปรรูป 2x8x10"},{"$f":"INDEX(BidItems[#Data],MATCH(4,BidItems[ค่าใช้จ่ายจัดอันดับ],0),4)","v":33.75}]
[null,{"$f":"INDEX(BidItems[#Data],MATCH(5,BidItems[ค่าใช้จ่ายจัดอันดับ],0),2)","v":"คู่ของถุงมือ, หนัง"},{"$f":"INDEX(BidItems[#Data],MATCH(5,BidItems[ค่าใช้จ่ายจัดอันดับ],0),4)","v":15.5}]

{"sheet":"การแบ่งต้นทุน","index":2,"n_rows":14,"n_cols":6,"rows_kept":14,"merged":[[0,1,0,4],[1,1,1,4]]}
[null,"การแบ่งต้นทุน",{"$nulls":3}," "]
[null,"รายการของวัสดุและต้นทุน"]
[null,"จำนวน","คำอธิบาย","ราคา","รวม","ค่าใช้จ่ายจัดอันดับ"]
[null,5,"ไม้แปรรูป 2x8x10",{"v":6.75,"d":"฿6.75"},{"$f":"IFERROR(BidItems[[#This Row],[ราคา]]*BidItems[[#This Row],[จำนวน]], \"\")","v":{"v":33.75,"d":"฿33.75"}},{"$f":"_xlfn.RANK.EQ(BidItems[[#This Row],[รวม]],BidItems[รวม])","v":4}]
[null,20,"ไม้แปรรูป 2x4x10",{"v":4.97,"d":"฿4.97"},{"$f":"IFERROR(BidItems[[#This Row],[ราคา]]*BidItems[[#This Row],[จำนวน]], \"\")","v":{"v":99.39999999999999,"d":"฿99.40"}},{"$f":"_xlfn.RANK.EQ(BidItems[[#This Row],[รวม]],BidItems[รวม])","v":2}]
[null,30,"ขายึดตง",{"v":2.49,"d":"฿2.49"},{"$f":"IFERROR(BidItems[[#This Row],[ราคา]]*BidItems[[#This Row],[จำนวน]], \"\")","v":{"v":74.7,"d":"฿74.70"}},{"$f":"_xlfn.RANK.EQ(BidItems[[#This Row],[รวม]],BidItems[รวม])","v":3}]
[null,2,"กล่องสกรู 2 นิ้ว",{"v":6.67,"d":"฿6.67"},{"$f":"IFERROR(BidItems[[#This Row],[ราคา]]*BidItems[[#This Row],[จำนวน]], \"\")","v":{"v":13.34,"d":"฿13.34"}},{"$f":"_xlfn.RANK.EQ(BidItems[[#This Row],[รวม]],BidItems[รวม])","v":6}]
[null,2,"กล่องใส่ตะปู 10 เพนนี",{"v":3.25,"d":"฿3.25"},{"$f":"IFERROR(BidItems[[#This Row],[ราคา]]*BidItems[[#This Row],[จำนวน]], \"\")","v":{"v":6.5,"d":"฿6.50"}},{"$f":"_xlfn.RANK.EQ(BidItems[[#This Row],[รวม]],BidItems[รวม])","v":7}]
[null,2,"คู่ของถุงมือ, หนัง",{"v":7.75,"d":"฿7.75"},{"$f":"IFERROR(BidItems[[#This Row],[ราคา]]*BidItems[[#This Row],[จำนวน]], \"\")","v":{"v":15.5,"d":"฿15.50"}},{"$f":"_xlfn.RANK.EQ(BidItems[[#This Row],[รวม]],BidItems[รวม])","v":5}]
[null,2,"ค่าแรง",{"v":100,"d":"฿100.00"},{"$f":"IFERROR(BidItems[[#This Row],[ราคา]]*BidItems[[#This Row],[จำนวน]], \"\")","v":{"v":200,"d":"฿200.00"}},{"$f":"_xlfn.RANK.EQ(BidItems[[#This Row],[รวม]],BidItems[รวม])","v":1}]
[4,null,null,"ผลรวมย่อย",{"$f":"SUBTOTAL(109,BidItems[รวม])","v":{"v":443.18999999999994,"d":"฿443.19"}}]
[5,null,null,"อัตราภาษี",{"v":0.075,"d":"7.50%"}]
[{"$nulls":3},"ภาษี",{"$f":"IFERROR(อัตราภาษี*BidItems[[#Totals],[รวม]], \"\")","v":{"v":33.23924999999999,"d":"฿33.24"}}]
[{"$nulls":3},"ผลรวมทั้งหมด",{"$f":"IFERROR(ภาษี+BidItems[[#Totals],[รวม]], \"\")","v":{"v":476.4292499999999,"d":"฿476.43"}}]

{"sheet":"สรุปต้นทุนการประมูล","index":3,"n_rows":3,"n_cols":4,"rows_kept":3}
[null,"สรุปต้นทุนการประมูล"]
[null,"การแบ่งวัสดุและค่าใช้จ่าย",null,"หมายเหตุ"]
[null,"แผนภูมิวงกลมแสดงค่าใช้จ่ายสูงสุด 5 อันดับต่อวัสดุ ข้อมูลจะยึดตามตารางรายการประมูลในเวิร์กชีตการแบ่งต้นทุน",null,"ใส่บันทึกย่อในเซลล์นี้"]